Workbook

Sheet Disclaimer
B2: Copyright © 2019 Saxo Bank A/S Licensed under the Apache License, Version 2.0 (the "License"); You may not use this file except in compliance with the License. You may obtain a copy of the License at http://www.apache.org/licenses/LICENSE-2.0 Unless required by applicable law or agreed to in writing, software distributed under the License is distributed on an "AS IS" BASIS, WITHOUT WARRANTIES OR CONDITIONS OF ANY KIND, either express or implied. See the License for the specific language governing permissions and limitations under the License.

Sheet Chart
A1: OpenAPI Live Chart w/ Bollinger Bands
A3: UIC (Stock only) | B3: 21
A4: AssetType | B4: FxSpot
A5: Symbol | B5: =_xll.OpenAPIGet("/openapi/ref/v1/instruments/details/?Uics="&Uic&"&AssetTypes="&AssetType&"&FieldGroups=","Symbol") -> EURUSD
A6: Horizon (min) | B6: 360
A7: Datapoints | B7: 100
A9: Bollinger Bands
A10: Look-back window | B10: 20
A11: Std. deviations | B11: 2

Sheet data
A1: Time (UTC) | B1: Open | C1: High | D1: Low | E1: Close | F1: Close | G1: SMA-20 | H1: B-high | I1: B-low | J1: STD-20 | L1: Time (UTC) | M1: Open | N1: High | O1: Low | P1: Close
A2: 23/05/2019 18:00:00 | B2: 1.11775 | C2: 1.1185 | D2: 1.1171 | E2: 1.1184 | F2: 1.13595 | L2: 26/06/2019 06:00:00 | M2: 1.1363 | N2: 1.1374 | O2: 1.1351 | P2: 1.13595
A3: 24/05/2019 00:00:00 | B3: 1.11835 | C3: 1.11845 | D3: 1.1177 | E3: 1.1183 | F3: 1.13595
A4: 24/05/2019 06:00:00 | B4: 1.1182 | C4: 1.12055 | D4: 1.1178 | E4: 1.11825 | F4: 1.13595
A5: 24/05/2019 12:00:00 | B5: 1.1183 | C5: 1.12115 | D5: 1.11825 | E5: 1.121 | F5: 1.13595
A6: 24/05/2019 18:00:00 | B6: 1.12095 | C6: 1.12095 | D6: 1.12045 | E6: 1.12045 | F6: 1.13595
A7: 26/05/2019 18:00:00 | B7: 1.11899 | C7: 1.12119 | D7: 1.11892 | E7: 1.12065 | F7: 1.13595
A8: 27/05/2019 00:00:00 | B8: 1.1206 | C8: 1.1215 | D8: 1.1203 | E8: 1.12095 | F8: 1.13595
A9: 27/05/2019 06:00:00 | B9: 1.1209 | C9: 1.121 | D9: 1.1191 | E9: 1.11955 | F9: 1.13595
A10: 27/05/2019 12:00:00 | B10: 1.11955 | C10: 1.11995 | D10: 1.1187 | E10: 1.119 | F10: 1.13595
A11: 27/05/2019 18:00:00 | B11: 1.11895 | C11: 1.11945 | D11: 1.11875 | E11: 1.1193 | F11: 1.13595
A12: 28/05/2019 00:00:00 | B12: 1.1193 | C12: 1.1196 | D12: 1.1178 | E12: 1.11855 | F12: 1.13595
A13: 28/05/2019 06:00:00 | B13: 1.1186 | C13: 1.1198 | D13: 1.1175 | E13: 1.11935 | F13: 1.13595
A14: 28/05/2019 12:00:00 | B14: 1.1193 | C14: 1.11945 | D14: 1.1162 | E14: 1.11705 | F14: 1.13595
A15: 28/05/2019 18:00:00 | B15: 1.11705 | C15: 1.1172 | D15: 1.1159 | E15: 1.1168 | F15: 1.13595
A16: 29/05/2019 00:00:00 | B16: 1.11675 | C16: 1.1172 | D16: 1.11615 | E16: 1.1166 | F16: 1.13595
A17: 29/05/2019 06:00:00 | B17: 1.1166 | C17: 1.1167 | D17: 1.1147 | E17: 1.1151 | F17: 1.13595
A18: 29/05/2019 12:00:00 | B18: 1.1151 | C18: 1.11565 | D18: 1.1124 | E18: 1.11375 | F18: 1.13595
A19: 29/05/2019 18:00:00 | B19: 1.1137 | C19: 1.11385 | D19: 1.1129 | E19: 1.11365 | F19: 1.13595
A20: 30/05/2019 00:00:00 | B20: 1.11365 | C20: 1.1143 | D20: 1.1133 | E20: 1.11355 | F20: 1.13595
A21: 30/05/2019 06:00:00 | B21: 1.1136 | C21: 1.1143 | D21: 1.1124 | E21: 1.11355 | F21: 1.13595 | G21: =AVERAGE(E2:E21) -> 1.11769 | H21: =G21+ multiplier*J21 -> 1.122702744 | I21: =G21- multiplier*J21 -> 1.112677256 | J21: =_xlfn.STDEV.P(E2:E21) -> 0.00250637188
A22: 30/05/2019 12:00:00 | B22: 1.1136 | C22: 1.1141 | D22: 1.11155 | E22: 1.1137 | F22: 1.13595 | G22: 1.117455 | H22: =G22+ multiplier*J22 -> 1.122745548 | I22: =G22- multiplier*J22 -> 1.112164452 | J22: 0.002645274088
A23: 30/05/2019 18:00:00 | B23: 1.11365 | C23: 1.11375 | D23: 1.11255 | E23: 1.1129 | F23: 1.13595 | G23: 1.117185 | H23: =G23+ multiplier*J23 -> 1.122815728 | I23: =G23- multiplier*J23 -> 1.111554272 | J23: 0.002815364097
A24: 31/05/2019 00:00:00 | B24: 1.11295 | C24: 1.114 | D24: 1.1125 | E24: 1.1129 | F24: 1.13595 | G24: 1.1169175 | H24: =G24+ multiplier*J24 -> 1.122822098 | I24: =G24- multiplier*J24 -> 1.111012902 | J24: 0.002952298892
A25: 31/05/2019 06:00:00 | B25: 1.11295 | C25: 1.1156 | D25: 1.11285 | E25: 1.11435 | F25: 1.13595 | G25: 1.116585 | H25: =G25+ multiplier*J25 -> 1.122277723 | I25: =G25- multiplier*J25 -> 1.110892277 | J25: 0.002846361713
A26: 31/05/2019 12:00:00 | B26: 1.1143 | C26: 1.11795 | D26: 1.11365 | E26: 1.11665 | F26: 1.13595 | G26: 1.116395 | H26: =G26+ multiplier*J26 -> 1.121805721 | I26: =G26- multiplier*J26 -> 1.110984279 | J26: 0.00270536042
A27: 31/05/2019 18:00:00 | B27: 1.11665 | C27: 1.1178 | D27: 1.1165 | E27: 1.11675 | F27: 1.13595 | G27: 1.1162 | H27: =G27+ multiplier*J27 -> 1.121252524 | I27: =G27- multiplier*J27 -> 1.111147476 | J27: 0.002526262061
A28: 2019-02-06T18:00:00 | B28: 1.1165 | C28: 1.1174 | D28: 1.1148 | E28: 1.11735 | F28: 1.13595 | G28: 1.11602 | H28: =G28+ multiplier*J28 -> 1.120618956 | I28: =G28- multiplier*J28 -> 1.111421044 | J28: 0.002299478202
A29: 2019-03-06 | B29: 1.1173 | C29: 1.11895 | D29: 1.11725 | E29: 1.1174 | F29: 1.13595 | G29: 1.1159125 | H29: =G29+ multiplier*J29 -> 1.120270582 | I29: =G29- multiplier*J29 -> 1.111554418 | J29: 0.002179040787
A30: 2019-03-06T06:00:00 | B30: 1.11745 | C30: 1.11895 | D30: 1.116 | E30: 1.11805 | F30: 1.13595 | G30: 1.115865 | H30: =G30+ multiplier*J30 -> 1.120106592 | I30: =G30- multiplier*J30 -> 1.111623408 | J30: 0.002120795841
A31: 2019-03-06T12:00:00 | B31: 1.1181 | C31: 1.12505 | D31: 1.1181 | E31: 1.1243 | F31: 1.13595 | G31: 1.116115 | H31: =G31+ multiplier*J31 -> 1.121556608 | I31: =G31- multiplier*J31 -> 1.110673392 | J31: 0.002720804109
A32: 2019-03-06T18:00:00 | B32: 1.12435 | C32: 1.12615 | D32: 1.12385 | E32: 1.12455 | F32: 1.13595 | G32: 1.116415 | H32: =G32+ multiplier*J32 -> 1.122918468 | I32: =G32- multiplier*J32 -> 1.109911532 | J32: 0.003251734153
A33: 2019-04-06 | B33: 1.12455 | C33: 1.12575 | D33: 1.1244 | E33: 1.1253 | F33: 1.13595 | G33: 1.1167125 | H33: =G33+ multiplier*J33 -> 1.124196274 | I33: =G33- multiplier*J33 -> 1.109228726 | J33: 0.003741887057
A34: 2019-04-06T06:00:00 | B34: 1.12535 | C34: 1.1277 | D34: 1.124 | E34: 1.12535 | F34: 1.13595 | G34: 1.1171275 | H34: =G34+ multiplier*J34 -> 1.125507027 | I34: =G34- multiplier*J34 -> 1.108747973 | J34: 0.004189763567
A35: 2019-04-06T12:00:00 | B35: 1.12535 | C35: 1.12665 | D35: 1.12265 | E35: 1.1259 | F35: 1.13595 | G35: 1.1175825 | H35: =G35+ multiplier*J35 -> 1.126788926 | I35: =G35- multiplier*J35 -> 1.108376074 | J35: 0.004603212873
A36: 2019-04-06T18:00:00 | B36: 1.12585 | C36: 1.12665 | D36: 1.125 | E36: 1.12535 | F36: 1.13595 | G36: 1.11802 | H36: =G36+ multiplier*J36 -> 1.127811139 | I36: =G36- multiplier*J36 -> 1.108228861 | J36: 0.004895569426
A37: 2019-05-06 | B37: 1.12535 | C37: 1.12655 | D37: 1.12525 | E37: 1.1263 | F37: 1.13595 | G37: 1.11858 | H37: =G37+ multiplier*J37 -> 1.128905619 | I37: =G37- multiplier*J37 -> 1.108254381 | J37: 0.005162809313
A38: 2019-05-06T06:00:00 | B38: 1.12635 | C38: 1.1288 | D38: 1.1252 | E38: 1.12555 | F38: 1.13595 | G38: 1.11917 | H38: =G38+ multiplier*J38 -> 1.129671257 | I38: =G38- multiplier*J38 -> 1.108668743 | J38: 0.005250628534
A39: 2019-05-06T12:00:00 | B39: 1.1256 | C39: 1.13065 | D39: 1.1231 | E39: 1.1233 | F39: 1.13595 | G39: 1.1196525 | H39: =G39+ multiplier*J39 -> 1.129980253 | I39: =G39- multiplier*J39 -> 1.109324747 | J39: 0.00516387633
A40: 2019-05-06T18:00:00 | B40: 1.12325 | C40: 1.12335 | D40: 1.12195 | E40: 1.1228 | F40: 1.13595 | G40: 1.120115 | H40: =G40+ multiplier*J40 -> 1.130131991 | I40: =G40- multiplier*J40 -> 1.110098009 | J40: 0.005008495283
A41: 2019-06-06 | B41: 1.12285 | C41: 1.1234 | D41: 1.12235 | E41: 1.12335 | F41: 1.13595 | G41: 1.120605 | H41: =G41+ multiplier*J41 -> 1.130241021 | I41: =G41- multiplier*J41 -> 1.110968979 | J41: 0.004818010482
A42: 2019-06-06T06:00:00 | B42: 1.1233 | C42: 1.1272 | D42: 1.12005 | E42: 1.1264 | F42: 1.13595 | G42: 1.12124 | H42: =G42+ multiplier*J42 -> 1.130643223 | I42: =G42- multiplier*J42 -> 1.111836777 | J42: 0.004701611426
A43: 2019-06-06T12:00:00 | B43: 1.1264 | C43: 1.13085 | D43: 1.1244 | E43: 1.12875 | F43: 1.13595 | G43: 1.1220325 | H43: =G43+ multiplier*J43 -> 1.131158138 | I43: =G43- multiplier*J43 -> 1.112906862 | J43: 0.004562819167
A44: 2019-06-06T18:00:00 | B44: 1.1287 | C44: 1.12885 | D44: 1.12665 | E44: 1.12755 | F44: 1.13595 | G44: 1.122765 | H44: =G44+ multiplier*J44 -> 1.131163756 | I44: =G44- multiplier*J44 -> 1.114366244 | J44: 0.00419937793
A45: 2019-07-06 | B45: 1.12755 | C45: 1.1276 | D45: 1.12635 | E45: 1.1264 | F45: 1.13595 | G45: 1.1233675 | H45: =G45+ multiplier*J45 -> 1.13095481 | I45: =G45- multiplier*J45 -> 1.11578019 | J45: 0.003793655065
A46: 2019-07-06T06:00:00 | B46: 1.1264 | C46: 1.1271 | D46: 1.1251 | E46: 1.12705 | F46: 1.13595 | G46: 1.1238875 | H46: =G46+ multiplier*J46 -> 1.130970781 | I46: =G46- multiplier*J46 -> 1.116804219 | J46: 0.003541640686
A47: 2019-07-06T12:00:00 | B47: 1.12705 | C47: 1.13475 | D47: 1.1262 | E47: 1.1343 | F47: 1.13595 | G47: 1.124765 | H47: =G47+ multiplier*J47 -> 1.132419286 | I47: =G47- multiplier*J47 -> 1.117110714 | J47: 0.00382714319
A48: 2019-07-06T18:00:00 | B48: 1.1343 | C48: 1.1344 | D48: 1.13265 | E48: 1.13315 | F48: 1.13595 | G48: 1.125555 | H48: =G48+ multiplier*J48 -> 1.133246352 | I48: =G48- multiplier*J48 -> 1.117863648 | J48: 0.003845676143
A49: 2019-09-06T18:00:00 | B49: 1.1315 | C49: 1.13305 | D49: 1.1306 | E49: 1.13185 | F49: 1.13595 | G49: 1.1262775 | H49: =G49+ multiplier*J49 -> 1.133467317 | I49: =G49- multiplier*J49 -> 1.119087683 | J49: 0.003594908726
A50: 2019-10-06 | B50: 1.1319 | C50: 1.1324 | D50: 1.13025 | E50: 1.1304 | F50: 1.13595 | G50: 1.126895 | H50: =G50+ multiplier*J50 -> 1.13322184 | I50: =G50- multiplier*J50 -> 1.12056816 | J50: 0.003163419827
A51: 2019-10-06T06:00:00 | B51: 1.1304 | C51: 1.13125 | D51: 1.129 | E51: 1.12975 | F51: 1.13595 | G51: 1.1271675 | H51: =G51+ multiplier*J51 -> 1.133493263 | I51: =G51- multiplier*J51 -> 1.120841737 | J51: 0.0031628814
A52: 2019-10-06T12:00:00 | B52: 1.1298 | C52: 1.13195 | D52: 1.12905 | E52: 1.13135 | F52: 1.13595 | G52: 1.1275075 | H52: =G52+ multiplier*J52 -> 1.133963604 | I52: =G52- multiplier*J52 -> 1.121051396 | J52: 0.003228051851
A53: 2019-10-06T18:00:00 | B53: 1.1314 | C53: 1.1324 | D53: 1.13065 | E53: 1.13175 | F53: 1.13595 | G53: =AVERAGE(E34:E53) -> 1.12783 | H53: =G53+ multiplier*J53 -> 1.134454983 | I53: =G53- multiplier*J53 -> 1.121205017 | J53: =_xlfn.STDEV.P(E34:E53) -> 0.003312491509
A54: 2019-11-06 | B54: 1.1318 | C54: 1.1319 | D54: 1.1307 | E54: 1.13185 | F54: 1.13595 | G54: 1.128155 | H54: =G54+ multiplier*J54 -> 1.134898137 | I54: =G54- multiplier*J54 -> 1.121411863 | J54: 0.003371568626
A55: 2019-11-06T06:00:00 | B55: 1.13185 | C55: 1.13315 | D55: 1.1303 | E55: 1.131 | F55: 1.13595 | G55: 1.12841 | H55: =G55+ multiplier*J55 -> 1.135178427 | I55: =G55- multiplier*J55 -> 1.121641573 | J55: 0.00338421335
A56: 2019-11-06T12:00:00 | B56: 1.13095 | C56: 1.1337 | D56: 1.1301 | E56: 1.13325 | F56: 1.13595 | G56: 1.128805 | H56: =G56+ multiplier*J56 -> 1.135733196 | I56: =G56- multiplier*J56 -> 1.121876804 | J56: 0.003464098007
A57: 2019-11-06T18:00:00 | B57: 1.1332 | C57: 1.1337 | D57: 1.13245 | E57: 1.1329 | F57: 1.13595 | G57: 1.129135 | H57: =G57+ multiplier*J57 -> 1.136182205 | I57: =G57- multiplier*J57 -> 1.122087795 | J57: 0.00352360256
A58: 2019-12-06 | B58: 1.13295 | C58: 1.13375 | D58: 1.1326 | E58: 1.1337 | F58: 1.13595 | G58: 1.1295425 | H58: =G58+ multiplier*J58 -> 1.136655606 | I58: =G58- multiplier*J58 -> 1.122429394 | J58: 0.003556552931
A59: 2019-12-06T06:00:00 | B59: 1.13375 | C59: 1.1343 | D59: 1.1311 | E59: 1.13215 | F59: 1.13595 | G59: 1.129985 | H59: =G59+ multiplier*J59 -> 1.136571281 | I59: =G59- multiplier*J59 -> 1.123398719 | J59: 0.003293140598
A60: 2019-12-06T12:00:00 | B60: 1.1321 | C60: 1.134 | D60: 1.1289 | E60: 1.12935 | F60: 1.13595 | G60: 1.1303125 | H60: =G60+ multiplier*J60 -> 1.136031405 | I60: =G60- multiplier*J60 -> 1.124593595 | J60: 0.002859452526
A61: 2019-12-06T18:00:00 | B61: 1.12935 | C61: 1.1296 | D61: 1.1282 | E61: 1.1292 | F61: 1.13595 | G61: 1.130605 | H61: =G61+ multiplier*J61 -> 1.135392055 | I61: =G61- multiplier*J61 -> 1.125817945 | J61: 0.002393527731
A62: 13/06/2019 00:00:00 | B62: 1.12925 | C62: 1.13 | D62: 1.1288 | E62: 1.12985 | F62: 1.13595 | G62: 1.1307775 | H62: =G62+ multiplier*J62 -> 1.135179145 | I62: =G62- multiplier*J62 -> 1.126375855 | J62: 0.00220082229
A63: 13/06/2019 06:00:00 | B63: 1.1299 | C63: 1.13035 | D63: 1.12835 | E63: 1.12965 | F63: 1.13595 | G63: 1.1308225 | H63: =G63+ multiplier*J63 -> 1.135158221 | I63: =G63- multiplier*J63 -> 1.126486779 | J63: 0.002167860408
A64: 13/06/2019 12:00:00 | B64: 1.1296 | C64: 1.12965 | D64: 1.1268 | E64: 1.12795 | F64: 1.13595 | G64: 1.1308425 | H64: =G64+ multiplier*J64 -> 1.135120966 | I64: =G64- multiplier*J64 -> 1.126564034 | J64: 0.002139233215
A65: 13/06/2019 18:00:00 | B65: 1.1279 | C65: 1.12845 | D65: 1.1272 | E65: 1.1279 | F65: 1.13595 | G65: 1.1309175 | H65: =G65+ multiplier*J65 -> 1.134925901 | I65: =G65- multiplier*J65 -> 1.126909099 | J65: 0.002004200277
A66: 14/06/2019 00:00:00 | B66: 1.12795 | C66: 1.1282 | D66: 1.12695 | E66: 1.1271 | F66: 1.13595 | G66: 1.13092 | H66: =G66+ multiplier*J66 -> 1.1349188 | I66: =G66- multiplier*J66 -> 1.1269212 | J66: 0.00199939991
A67: 14/06/2019 06:00:00 | B67: 1.1271 | C67: 1.1289 | D67: 1.1251 | E67: 1.12585 | F67: 1.13595 | G67: 1.1304975 | H67: =G67+ multiplier*J67 -> 1.134755724 | I67: =G67- multiplier*J67 -> 1.126239276 | J67: 0.002129112198
A68: 14/06/2019 12:00:00 | B68: 1.12585 | C68: 1.12675 | D68: 1.1202 | E68: 1.121 | F68: 1.13595 | G68: 1.12989 | H68: =G68+ multiplier*J68 -> 1.135659714 | I68: =G68- multiplier*J68 -> 1.124120286 | J68: 0.002884857016
A69: 14/06/2019 18:00:00 | B69: 1.121 | C69: 1.12135 | D69: 1.1205 | E69: 1.12095 | F69: 1.13595 | G69: 1.129345 | H69: =G69+ multiplier*J69 -> 1.136223801 | I69: =G69- multiplier*J69 -> 1.122466199 | J69: 0.003439400384
A70: 16/06/2019 18:00:00 | B70: 1.1205 | C70: 1.1217 | D70: 1.1202 | E70: 1.1215 | F70: 1.13595 | G70: 1.1289 | H70: =G70+ multiplier*J70 -> 1.136555847 | I70: =G70- multiplier*J70 -> 1.121244153 | J70: 0.003827923719
A71: 17/06/2019 00:00:00 | B71: 1.12155 | C71: 1.1224 | D71: 1.12135 | E71: 1.1216 | F71: 1.13595 | G71: 1.1284925 | H71: =G71+ multiplier*J71 -> 1.136766633 | I71: =G71- multiplier*J71 -> 1.120218367 | J71: 0.004137066443
A72: 17/06/2019 06:00:00 | B72: 1.1216 | C72: 1.12305 | D72: 1.12035 | E72: 1.1229 | F72: 1.13595 | G72: 1.12807 | H72: =G72+ multiplier*J72 -> 1.136577021 | I72: =G72- multiplier*J72 -> 1.119562979 | J72: 0.004253510315
A73: 17/06/2019 12:00:00 | B73: 1.12295 | C73: 1.12465 | D73: 1.1218 | E73: 1.12185 | F73: 1.13595 | G73: 1.127575 | H73: =G73+ multiplier*J73 -> 1.136316768 | I73: =G73- multiplier*J73 -> 1.118833232 | J73: 0.004370883778
A74: 17/06/2019 18:00:00 | B74: 1.1219 | C74: 1.12245 | D74: 1.12135 | E74: 1.1224 | F74: 1.13595 | G74: 1.1271025 | H74: =G74+ multiplier*J74 -> 1.13589036 | I74: =G74- multiplier*J74 -> 1.11831464 | J74: 0.004393929762
A75: 18/06/2019 00:00:00 | B75: 1.12245 | C75: 1.1239 | D75: 1.12215 | E75: 1.12365 | F75: 1.13595 | G75: 1.126735 | H75: =G75+ multiplier*J75 -> 1.135454639 | I75: =G75- multiplier*J75 -> 1.118015361 | J75: 0.004359819377
A76: 18/06/2019 06:00:00 | B76: 1.12365 | C76: 1.12425 | D76: 1.1181 | E76: 1.1196 | F76: 1.13595 | G76: 1.1260525 | H76: =G76+ multiplier*J76 -> 1.134762349 | I76: =G76- multiplier*J76 -> 1.117342651 | J76: 0.004354924655
A77: 18/06/2019 12:00:00 | B77: 1.11955 | C77: 1.12125 | D77: 1.1182 | E77: 1.11945 | F77: 1.13595 | G77: 1.12538 | H77: =G77+ multiplier*J77 -> 1.133946995 | I77: =G77- multiplier*J77 -> 1.116813005 | J77: 0.004283497403
A78: 18/06/2019 18:00:00 | B78: 1.1195 | C78: 1.1199 | D78: 1.11915 | E78: 1.11975 | F78: 1.13595 | G78: 1.1246825 | H78: =G78+ multiplier*J78 -> 1.132678891 | I78: =G78- multiplier*J78 -> 1.116686109 | J78: 0.003998195687
A79: 19/06/2019 00:00:00 | B79: 1.1198 | C79: 1.1202 | D79: 1.1187 | E79: 1.1192 | F79: 1.13595 | G79: 1.124035 | H79: =G79+ multiplier*J79 -> 1.131593049 | I79: =G79- multiplier*J79 -> 1.116476951 | J79: 0.003779024345
A80: 19/06/2019 06:00:00 | B80: 1.11925 | C80: 1.12075 | D80: 1.1189 | E80: 1.1203 | F80: 1.13595 | G80: 1.1235825 | H80: =G80+ multiplier*J80 -> 1.130893128 | I80: =G80- multiplier*J80 -> 1.116271872 | J80: 0.003655313769
A81: 19/06/2019 12:00:00 | B81: 1.12035 | C81: 1.1222 | D81: 1.1201 | E81: 1.1216 | F81: 1.13595 | G81: 1.1232025 | H81: =G81+ multiplier*J81 -> 1.130083087 | I81: =G81- multiplier*J81 -> 1.116321913 | J81: 0.00344029341
A82: 19/06/2019 18:00:00 | B82: 1.1215 | C82: 1.1254 | D82: 1.1212 | E82: 1.12355 | F82: 1.13595 | G82: 1.1228875 | H82: =G82+ multiplier*J82 -> 1.129062601 | I82: =G82- multiplier*J82 -> 1.116712399 | J82: 0.003087550607
A83: 20/06/2019 00:00:00 | B83: 1.1236 | C83: 1.12725 | D83: 1.1235 | E83: 1.12655 | F83: 1.13595 | G83: 1.1227325 | H83: =G83+ multiplier*J83 -> 1.128351421 | I83: =G83- multiplier*J83 -> 1.117113579 | J83: 0.00280946058
A84: 20/06/2019 06:00:00 | B84: 1.1265 | C84: 1.1315 | D84: 1.1265 | E84: 1.131 | F84: 1.13595 | G84: 1.122885 | H84: =G84+ multiplier*J84 -> 1.129186198 | I84: =G84- multiplier*J84 -> 1.116583802 | J84: 0.003150599149
A85: 20/06/2019 12:00:00 | B85: 1.13105 | C85: 1.1317 | D85: 1.127 | E85: 1.1295 | F85: 1.13595 | G85: =AVERAGE(E66:E85) -> 1.122965 | H85: =G85+ multiplier*J85 -> 1.129552951 | I85: =G85- multiplier*J85 -> 1.116377049 | J85: =_xlfn.STDEV.P(E66:E85) -> 0.003293975562
A86: 20/06/2019 18:00:00 | B86: 1.12945 | C86: 1.1298 | D86: 1.12835 | E86: 1.1294 | F86: 1.13595 | G86: 1.12308 | H86: =G86+ multiplier*J86 -> 1.130023371 | I86: =G86- multiplier*J86 -> 1.116136629 | J86: 0.00347168547
A87: 21/06/2019 00:00:00 | B87: 1.12945 | C87: 1.1309 | D87: 1.12915 | E87: 1.1293 | F87: 1.13595 | G87: 1.1232525 | H87: =G87+ multiplier*J87 -> 1.130620978 | I87: =G87- multiplier*J87 -> 1.115884022 | J87: 0.003684239236
A88: 21/06/2019 06:00:00 | B88: 1.12925 | C88: 1.1317 | D88: 1.1283 | E88: 1.13165 | F88: 1.13595 | G88: 1.123785 | H88: =G88+ multiplier*J88 -> 1.131924355 | I88: =G88- multiplier*J88 -> 1.115645645 | J88: 0.004069677506
A89: 21/06/2019 12:00:00 | B89: 1.1317 | C89: 1.1368 | D89: 1.13085 | E89: 1.13615 | F89: 1.13595 | G89: 1.124545 | H89: =G89+ multiplier*J89 -> 1.134183978 | I89: =G89- multiplier*J89 -> 1.114906022 | J89: 0.004819489081
A90: 21/06/2019 18:00:00 | B90: 1.1361 | C90: 1.13775 | D90: 1.1356 | E90: 1.1369 | F90: 1.13595 | G90: 1.125315 | H90: =G90+ multiplier*J90 -> 1.136233475 | I90: =G90- multiplier*J90 -> 1.114396525 | J90: 0.005459237584
A91: 23/06/2019 18:00:00 | B91: 1.1366 | C91: 1.1385 | D91: 1.1365 | E91: 1.13845 | F91: 1.13595 | G91: 1.1261575 | H91: =G91+ multiplier*J91 -> 1.138327926 | I91: =G91- multiplier*J91 -> 1.113987074 | J91: 0.006085213123
A92: 24/06/2019 00:00:00 | B92: 1.1385 | C92: 1.1386 | D92: 1.1375 | E92: 1.1377 | F92: 1.13595 | G92: 1.1268975 | H92: =G92+ multiplier*J92 -> 1.139953245 | I92: =G92- multiplier*J92 -> 1.113841755 | J92: 0.006527872452
A93: 24/06/2019 06:00:00 | B93: 1.1377 | C93: 1.1398 | D93: 1.1372 | E93: 1.1394 | F93: 1.13595 | G93: 1.127775 | H93: =G93+ multiplier*J93 -> 1.141686847 | I93: =G93- multiplier*J93 -> 1.113863153 | J93: 0.006955923734
A94: 24/06/2019 12:00:00 | B94: 1.1394 | C94: 1.14 | D94: 1.1379 | E94: 1.13905 | F94: 1.13595 | G94: 1.1286075 | H94: =G94+ multiplier*J94 -> 1.143113164 | I94: =G94- multiplier*J94 -> 1.114101836 | J94: 0.007252831775
A95: 24/06/2019 18:00:00 | B95: 1.1391 | C95: 1.14035 | D95: 1.13905 | E95: 1.1399 | F95: 1.13595 | G95: 1.12942 | H95: =G95+ multiplier*J95 -> 1.144531664 | I95: =G95- multiplier*J95 -> 1.114308336 | J95: 0.007555832184
A96: 25/06/2019 00:00:00 | B96: 1.13995 | C96: 1.14115 | D96: 1.1392 | E96: 1.13935 | F96: 1.13595 | G96: 1.1304075 | H96: =G96+ multiplier*J96 -> 1.145404042 | I96: =G96- multiplier*J96 -> 1.115410958 | J96: 0.007498271051
A97: 25/06/2019 06:00:00 | B97: 1.13935 | C97: 1.14045 | D97: 1.13765 | E97: 1.1382 | F97: 1.13595 | G97: 1.131345 | H97: =G97+ multiplier*J97 -> 1.145819526 | I97: =G97- multiplier*J97 -> 1.116870474 | J97: 0.007237262949
A98: 25/06/2019 12:00:00 | B98: 1.13825 | C98: 1.13985 | D98: 1.1344 | E98: 1.13705 | F98: 1.13595 | G98: 1.13221 | H98: =G98+ multiplier*J98 -> 1.145853299 | I98: =G98- multiplier*J98 -> 1.118566701 | J98: 0.006821649361
A99: 25/06/2019 18:00:00 | B99: 1.13705 | C99: 1.13775 | D99: 1.1359 | E99: 1.1368 | F99: 1.13595 | G99: 1.13309 | H99: =G99+ multiplier*J99 -> 1.145475621 | I99: =G99- multiplier*J99 -> 1.120704379 | J99: 0.006192810347
A100: 26/06/2019 00:00:00 | B100: 1.13675 | C100: 1.1372 | D100: 1.13525 | E100: 1.13625 | F100: 1.13595 | G100: 1.1338875 | H100: =G100+ multiplier*J100 -> 1.144848334 | I100: =G100- multiplier*J100 -> 1.122926666 | J100: 0.005480416841
A101: 26/06/2019 06:00:00 | B101: 1.1363 | C101: 1.1374 | D101: 1.1351 | E101: 1.13595 | F101: 1.13595 | G101: 1.134605 | H101: =G101+ multiplier*J101 -> 1.14402492 | I101: =G101- multiplier*J101 -> 1.12518508 | J101: 0.004709960191
